bitfinex/quotes_ETHUSD_20241003
["timestamp","ask_amount","ask_price","bid_price","bid_amount"]
[1727999154318,5.00238,2355.3,2355.0,0.44650317]
[1727999154615,5.00238,2355.3,2354.9,9.3851506]
[1727999154820,9.24829,2355.3,2355.0,0.44648653]
[1727999154999,4.24598,2355.2,2354.8,5.1389206]
[1727999155211,5.00239,2355.3,2354.9,4.69279508]
[1727999155387,5.00239,2355.3,2355.0,0.44649508]
[1727999155590,5.00239,2355.3,2354.9,9.3850006]
[1727999155920,0.0744935,2355.2,2355.0,0.44646967]
[1727999156231,5.00239,2355.3,2355.0,4.24627]
[1727999156439,0.07440637,2355.1,2355.0,4.24627]
[1727999156599,5.00239,2355.3,2355.0,4.69272304]
[1727999156935,4.969658,2355.7,2355.1,4.24603]
[1727999157108,4.24543,2355.5,2355.0,0.8923606]
[1727999157312,4.32026993,2355.4,2355.1,0.44643253]
[1727999157504,5.00234,2355.3,2355.0,0.8923606]
[1727999157845,4.24599,2355.2,2355.0,0.8923606]
[1727999158011,4.32041789,2355.2,2355.0,0.8923606]
[1727999158720,0.07442789,2355.2,2355.0,5.1385706]
[1727999158920,0.07442789,2355.2,2354.9,5.13901583]
[1727999159151,0.7566,2355.3,2355.0,4.69265486]
[1727999159441,0.7566,2355.3,2355.0,4.24621]
[1727999159442,0.07461622,2355.2,2355.0,4.24621]
[1727999159808,0.7566,2355.3,2355.0,4.24621]
[1727999160054,0.0745291,2355.1,2355.0,4.24621]
[1727999160210,0.7566,2355.3,2355.0,4.6926508]
[1727999160433,0.7566,2355.3,2355.0,4.24621]
[1727999160610,0.07461941,2355.2,2355.1,4.2461]
[1727999160944,0.07461941,2355.2,2355.1,10.17346748]
[1727999161150,4.24528,2355.6,2355.2,4.24588]
[1727999161310,4.24559,2355.4,2355.1,5.89186583]
[1727999161510,5.00219,2355.4,2355.1,1.64576583]
[1727999161817,5.00218,2355.4,2355.2,0.44643674]
[1727999162002,5.00218,2355.4,2355.1,0.7532]
[1727999162206,4.24539,2355.5,2355.2,0.44646243]
[1727999162406,5.00186,2355.6,2355.2,4.24592]
[1727999163345,4.24539,2355.5,2355.1,6.83592142]
[1727999163644,4.24539,2355.5,2355.2,0.44645291]
[1727999163804,4.24539,2355.5,2355.1,11.08185142]
[1727999164005,4.24539,2355.5,2355.2,0.44646245]
[1727999164319,4.24539,2355.5,2355.1,6.83580142]
[1727999164645,4.24539,2355.5,2355.2,0.44644681]
[1727999164840,4.24539,2355.5,2355.1,6.83580142]
[1727999165144,4.24539,2355.5,2355.2,0.44644725]
[1727999165310,4.24539,2355.5,2355.1,6.83580142]
[1727999165641,4.24539,2355.5,2355.2,0.44643974]
[1727999165945,4.24558,2355.4,2355.1,5.94323559]
[1727999166109,4.24558,2355.4,2355.2,0.44644802]
[1727999166438,4.24558,2355.4,2355.1,5.94323559]
[1727999166636,4.24558,2355.4,2355.2,0.44644948]
[1727999166843,4.24544,2355.5,2355.1,5.94323559]
[1727999167136,8.49092,2355.5,2355.2,0.44644354]
[1727999167338,4.24544,2355.5,2355.1,6.83580142]
[1727999167506,4.24544,2355.5,2355.2,0.44644443]
[1727999167703,4.24557,2355.4,2355.1,5.94338559]
[1727999167909,4.24557,2355.4,2355.2,0.44644363]
[1727999168213,4.24557,2355.4,2355.1,5.94338559]
[1727999168418,4.24557,2355.4,2355.2,0.44644509]
[1727999168621,4.24557,2355.4,2355.1,5.94338559]
[1727999168844,4.24557,2355.4,2355.1,1.69730559]
[1727999169004,4.24557,2355.4,2355.0,5.13879583]
[1727999169209,4.24557,2355.4,2355.1,0.44645003]
[1727999169410,4.24557,2355.4,2355.0,5.13879583]
[1727999169713,4.24557,2355.4,2355.1,0.44645065]
[1727999169906,0.7616,2355.5,2355.0,0.89256583]
[1727999170108,0.7616,2355.5,2354.9,2.67736075]
[1727999170109,9.25397,2355.1,2354.9,2.67736075]
[1727999170422,4.24628,2355.0,2354.9,1.78479492]
[1727999170632,5.933097,2355.1,2354.9,2.23125223]
[1727999170633,5.00771,2355.1,2354.9,2.23125223]
[1727999170807,5.00771,2355.1,2355.0,0.44645623]
[1727999171011,5.00771,2355.1,2354.9,1.78479492]
[1727999171251,5.08232201,2355.1,2354.9,1.78479492]
[1727999172635,4.24628,2355.0,2354.9,1.78479492]
[1727999172836,4.24628,2355.0,2354.9,2.23118983]
[1727999173048,4.32080488,2355.0,2354.9,2.23118983]
[1727999173249,4.24628,2355.0,2354.9,2.23118983]
[1727999173471,0.07452488,2355.0,2354.9,2.23118983]
[1727999176281,0.07452488,2355.0,2354.9,6.47764983]
[1727999176487,4.24595,2355.2,2354.9,6.47764983]
[1727999176654,0.07452488,2355.0,2354.9,6.92382075]
[1727999176854,5.00745,2355.3,2354.9,7.59334919]
[1727999177080,0.0744675,2355.0,2354.9,6.03125492]
[1727999177250,5.00745,2355.3,2354.9,6.47753831]
[1727999177455,5.00745,2355.3,2355.0,0.44628339]
[1727999177653,5.00745,2355.3,2354.9,6.03125492]
[1727999177971,5.00745,2355.3,2355.0,0.44628055]
[1727999178147,5.00745,2355.3,2354.9,6.92369075]
[1727999178353,0.44414049,2355.6,2355.1,7.76458648]
[1727999178556,4.24538,2355.5,2355.2,4.69214206]
[1727999178760,5.05138,2355.5,2355.1,0.89256583]
[1727999178980,4.24574,2355.3,2355.2,0.44624051]
[1727999179200,4.24595,2355.2,2354.9,4.01640205]
[1727999179369,4.24595,2355.2,2355.0,0.44628151]
[1727999179557,5.05228,2355.0,2354.9,3.12383622]
[1727999179750,5.05228,2355.0,2354.9,1.78479492]
[1727999179963,5.05228,2355.0,2354.9,2.23109008]
[1727999180957,5.05228,2355.0,2354.9,2.23110022]
[1727999181157,5.05228,2355.0,2354.9,1.78479492]
[1727999181891,0.806,2355.0,2354.9,1.78479492]
[1727999182189,0.806,2355.0,2354.9,2.23109078]
[1727999182513,5.05228,2355.0,2354.9,2.23110304]
[1727999182963,5.05228,2355.0,2354.9,1.78479492]
[1727999183164,0.806,2355.2,2354.9,2.98409361]
[1727999183363,4.24584,2355.3,2355.0,0.44627362]
[1727999183577,4.24584,2355.3,2354.9,6.78421492]
[1727999183795,4.24584,2355.3,2355.0,0.44627246]
[1727999183950,4.24584,2355.3,2354.9,4.99942]
[1727999184157,4.24584,2355.3,2355.0,0.4462724]
[1727999184355,4.24584,2355.3,2354.9,4.99942]
[1727999184567,4.24584,2355.3,2355.0,0.44627236]
[1727999184771,4.24584,2355.3,2354.9,4.99942]
[1727999184968,8.49171,2355.3,2355.0,0.44626826]
[1727999185152,5.2992248,2355.3,2354.9,4.99942]
[1727999185351,4.24584,2355.3,2355.0,0.44627034]
[1727999185552,4.24584,2355.3,2354.9,4.99942]
[1727999185794,4.24584,2355.3,2355.0,0.44627063]
[1727999186095,0.07455701,2355.2,2354.9,4.99942]
[1727999186282,8.49174,2355.3,2354.9,4.99942]
[1727999186481,0.07446989,2355.1,2355.0,0.44626697]
[1727999186800,8.49174,2355.3,2355.0,0.44626697]
[1727999186963,8.49174,2355.3,2354.9,4.99942]
[1727999187163,8.49174,2355.3,2355.0,0.4462673]
[1727999187402,0.07455701,2355.2,2354.9,4.99942]
[1727999187618,0.07455701,2355.2,2354.9,6.33448149]
[1727999187901,0.07446989,2355.1,2354.9,2.08806149]
[1727999190661,0.07446989,2355.1,2354.8,0.89256583]
[1727999190871,4.24635,2355.0,2354.9,0.44629177]
[1727999191306,4.32073276,2355.0,2354.9,0.44629177]
[1727999192076,4.32073276,2355.0,2354.7,1.64556583]
[1727999192299,4.32073276,2355.0,2354.9,0.44632313]
[1727999192511,4.32073276,2355.0,2354.7,0.89256583]
[1727999192512,4.24664,2354.8,2354.7,0.89256583]
[1727999192809,4.24682,2354.7,2354.6,2.23135424]
[1727999193114,4.31998656,2354.7,2354.6,2.23135424]
[1727999193279,8.94984922,2354.7,2354.6,2.23135424]
[1727999193479,8.0202,2354.6,2354.5,0.89264863]
[1727999193795,0.7732,2354.6,2354.5,0.89264863]
[1727999194021,0.84625383,2354.6,2354.5,0.89264863]
[1727999194406,0.84625383,2354.6,2354.3,1.87304065]
[1727999194407,5.09326383,2354.6,2354.3,1.87304065]
[1727999194612,0.84625383,2354.6,2354.3,4.94111207]
[1727999194824,0.07305383,2354.6,2354.4,4.69323004]
[1727999195132,4.24648,2354.9,2354.6,0.8148]
[1727999196133,8.49307,2354.9,2354.6,0.8148]
[1727999196726,4.24666,2354.8,2354.6,0.8148]
[1727999197438,5.01923,2355.2,2354.6,1.43682963]
[1727999197679,4.24624,2355.1,2354.7,4.24682]
[1727999198392,4.24629,2355.0,2354.6,5.68374963]
[1727999199430,4.24624,2355.1,2354.7,4.24679]
[1727999199628,4.2463,2355.0,2354.6,5.68381963]
[1727999199832,4.24624,2355.1,2354.7,1.39895612]
[1727999200035,4.24624,2355.1,2354.7,4.24672]
[1727999200601,8.49245,2355.1,2354.6,5.68381963]
[1727999200941,4.31458004,2355.0,2354.6,5.68381963]
[1727999201129,0.06828004,2355.0,2354.7,4.24673]
[1727999201449,0.06828004,2355.0,2354.8,0.99305496]
[1727999202957,4.31467004,2355.0,2354.8,0.99305496]
[1727999203253,4.31467004,2355.0,2354.6,5.06179]
[1727999204458,0.06828004,2355.0,2354.6,5.0617]
[1727999204654,0.06828004,2355.0,2354.7,4.24681]
[1727999205046,0.06828004,2355.0,2354.6,5.0617]
[1727999205242,4.31462004,2355.0,2354.7,0.50617]
[1727999205422,0.06828004,2355.0,2354.7,4.75298]
[1727999205616,0.06828004,2355.0,2354.7,4.77770181]
[1727999205817,0.06828004,2355.0,2354.7,4.75298]
[1727999206017,0.06828004,2355.0,2354.7,0.50617]
[1727999206253,4.31458004,2355.0,2354.7,0.50617]
[1727999206950,4.31458004,2355.0,2354.6,5.0617]
[1727999210571,4.24646,2354.9,2354.6,0.8148]
[1727999210775,4.24646,2354.9,2354.6,5.0618]
[1727999211070,0.06817909,2354.8,2354.6,5.0618]
[1727999211277,4.24632,2355.0,2354.6,5.0618]
[1727999211474,0.06794004,2354.7,2354.6,5.0618]
[1727999211780,4.24632,2355.0,2354.6,5.6118]
[1727999212071,0.06811435,2354.9,2354.6,5.61165]
[1727999212251,0.06811435,2354.9,2354.6,10.97613597]
[1727999212429,0.06811435,2354.9,2354.6,5.61165]
[1727999215075,0.06811435,2354.9,2354.8,4.79664]
[1727999215380,0.7633,2355.5,2354.8,1.82541594]
[1727999215581,4.24603,2355.2,2354.9,0.44583435]
[1727999215762,4.24603,2355.2,2354.8,5.62609]
[1727999215962,0.06819025,2355.1,2354.8,5.62609]
[1727999216258,0.06819025,2355.1,2354.9,0.44585347]
[1727999216574,0.06819025,2355.1,2354.8,9.87258]
[1727999216747,0.06819025,2355.1,2355.0,4.24628]
[1727999217273,4.24563,2355.4,2355.0,4.24628]
[1727999217449,0.06818069,2355.1,2355.0,4.24628]
[1727999217774,4.24563,2355.4,2355.0,4.24628]
[1727999217951,0.06818069,2355.1,2355.0,4.24628]
[1727999218152,4.24563,2355.4,2355.0,5.44364913]
[1727999218935,0.06835497,2355.3,2355.0,5.44364913]
[1727999220773,4.31424497,2355.3,2355.0,1.19736913]
[1727999220985,4.24606,2355.2,2354.8,5.96725968]
[1727999221284,5.0093,2355.2,2354.8,4.24663]
[1727999221638,4.24621,2355.1,2354.7,8.13792968]
[1727999221863,4.24628,2355.0,2354.7,7.2467]
[1727999222174,4.24621,2355.1,2354.7,7.2467]
[1727999222175,4.24614,2355.1,2354.8,0.44582887]
[1727999222381,4.24614,2355.1,2354.7,13.92459916]
[1727999222581,0.7633,2354.9,2354.6,1.31682968]
[1727999222752,0.7633,2354.9,2354.6,4.24699]
[1727999222935,4.24678,2354.8,2354.4,0.89122968]
[1727999223144,8.49353,2354.8,2354.5,0.44586455]
[1727999223364,0.06738856,2354.7,2354.4,0.89122968]
[1727999223539,0.06738856,2354.7,2354.5,0.44599571]
[1727999223755,4.24675,2354.8,2354.6,0.4459843]
[1727999223988,4.24675,2354.8,2354.4,5.13857968]
[1727999224280,0.06817917,2354.7,2354.5,0.44598175]
[1727999224643,5.17238,2354.8,2354.4,5.13857968]
[1727999224846,0.06727664,2354.7,2354.5,0.44608079]
[1727999225189,5.17238,2354.8,2354.4,5.13857968]
[1727999225381,0.06809763,2354.6,2354.5,0.44611036]
[1727999225542,4.24673,2354.8,2354.5,0.44611036]
[1727999225746,0.06718306,2354.6,2354.5,4.24718]
[1727999226004,14.55557,2355.4,2354.8,5.03173]
[1727999226005,5.05233,2355.2,2354.8,5.03173]
[1727999226143,4.24582,2355.3,2354.9,6.11940515]
[1727999226342,0.06580339,2355.1,2354.9,6.11940515]
[1727999226577,4.24582,2355.3,2354.9,4.24639]
[1727999226792,0.06571625,2355.0,2354.8,5.03173]
[1727999226956,4.24592,2355.2,2354.8,6.27861949]
[1727999227156,0.0656291,2354.9,2354.7,6.11980515]
[1727999227355,4.2462,2355.1,2354.8,0.44611955]
[1727999227356,0.8064,2355.0,2354.8,0.44611955]
[1727999227571,0.8064,2355.0,2354.7,4.24679]
[1727999227883,0.8064,2355.2,2354.8,1.23133109]
[1727999228046,0.8064,2355.2,2354.9,4.24643]
[1727999229086,4.24576,2355.3,2354.9,4.24643]
[1727999229290,4.24576,2355.3,2354.9,4.3244864]
[1727999229460,8.49165,2355.3,2355.0,0.93561464]
[1727999229655,4.24576,2355.3,2354.8,9.27821]
[1727999229978,4.24576,2355.3,2354.9,4.69250257]
[1727999230203,12.36198,2355.4,2355.0,0.97241626]
[1727999230682,4.24575,2355.3,2355.0,0.97241626]
[1727999230879,4.31221398,2355.3,2355.0,0.97241626]
[1727999234887,0.06646398,2355.3,2355.0,0.97241626]
[1727999235068,0.06646398,2355.3,2355.0,5.21866626]
[1727999236859,0.06646398,2355.3,2355.1,1.30706663]
[1727999237067,5.49576807,2355.6,2355.2,4.24592]
[1727999237262,4.24556,2355.4,2355.1,1.30706663]
[1727999237459,0.06574952,2355.3,2355.1,1.30706663]
[1727999237683,0.06574952,2355.3,2355.2,0.65257629]
[1727999238483,4.24574,2355.3,2355.2,0.65257629]
[1727999238654,4.31156658,2355.3,2354.9,5.92329975]
[1727999238846,4.31156658,2355.3,2355.0,0.44596846]
[1727999239076,4.31156658,2355.3,2354.9,5.92329975]
[1727999239386,4.24617,2355.1,2354.9,0.89165975]
[1727999239595,5.05268,2355.0,2354.9,0.89165975]
[1727999239792,0.87215756,2355.0,2354.9,0.89165975]
[1727999240089,5.11843756,2355.0,2354.9,0.89165975]
[1727999240448,5.11843756,2355.0,2354.6,8.13866468]
[1727999240648,5.11843756,2355.0,2354.7,0.44211259]
[1727999240858,5.11843756,2355.0,2354.6,7.24697]
[1727999241262,5.11843756,2355.0,2354.7,0.44212567]
[1727999241449,5.11843756,2355.0,2354.6,7.24697]
[1727999241649,5.11843756,2355.0,2354.7,0.44214332]
[1727999241883,5.11843756,2355.0,2354.6,7.24697]
[1727999242184,5.05268,2355.0,2354.7,0.44213888]
[1727999242387,0.8064,2355.0,2354.7,4.24681]
[1727999242544,0.06560646,2354.9,2354.7,4.24681]
[1727999243601,0.06560646,2354.9,2354.8,5.47399999]
[1727999243959,5.05204,2355.4,2355.0,4.24626]
[1727999245197,5.05204,2355.4,2354.8,5.03173]
[1727999245198,4.24575,2355.3,2354.9,4.24636]
[1727999245401,5.175529,2355.3,2354.8,5.03175]
[1727999245699,5.175529,2355.3,2354.7,4.24679]
[1727999245700,4.24616,2355.1,2354.7,4.24679]
[1727999245904,4.24616,2355.1,2354.6,8.92393929]
[1727999245905,4.24628,2355.0,2354.8,0.44220255]
[1727999246062,4.31163895,2355.0,2354.6,8.92402929]
[1727999246481,4.31163895,2355.0,2354.7,0.44219982]
[1727999246690,4.31163895,2355.0,2354.6,8.92402929]
[1727999246884,4.31163895,2355.0,2354.7,0.44220185]
[1727999247184,4.31163895,2355.0,2354.6,8.03213]
[1727999247380,0.06535895,2355.0,2354.7,4.68894481]
[1727999247607,0.06535895,2355.0,2354.8,4.68873803]
[1727999247802,0.06535895,2355.0,2354.7,4.24678]
[1727999248112,0.06522529,2354.9,2354.8,0.44219612]
[1727999248307,0.06522529,2354.9,2354.7,4.24675]
[1727999248473,4.24612,2355.1,2354.7,5.82809992]
[1727999248668,0.06531244,2355.0,2354.7,4.24672]
[1727999248896,4.24612,2355.1,2354.7,4.24672]
[1727999249520,5.05235,2355.2,2354.8,4.68879347]
[1727999249727,5.05235,2355.2,2354.7,4.24672]
[1727999250007,4.31159957,2355.1,2354.8,0.44222265]
[1727999250176,4.2462,2355.1,2354.7,4.24672]
[1727999250373,0.06531244,2355.0,2354.7,8.49347]
[1727999250685,0.06531244,2355.0,2354.8,0.4422344]
[1727999250888,0.06531244,2355.0,2354.8,4.24657]
[1727999251085,5.05235,2355.2,2354.8,4.24657]
[1727999251425,0.06539957,2355.1,2354.8,4.24657]
[1727999251714,0.06539957,2355.1,2354.9,4.24643]
[1727999251878,0.06539957,2355.1,2355.0,4.24628]
[1727999252073,0.8064,2355.4,2355.0,4.24628]
[1727999252278,0.06557205,2355.3,2355.0,4.24628]
[1727999252514,4.31138205,2355.3,2354.9,4.24635]
[1727999252714,0.06557205,2355.3,2354.9,4.24635]
[1727999252917,0.06557205,2355.3,2355.0,4.24621]
[1727999253214,4.31132205,2355.3,2354.9,4.24639]
[1727999253709,4.31132205,2355.3,2354.9,8.49276]
[1727999253913,4.31132205,2355.3,2354.9,4.24636]
[1727999254146,0.8133,2355.1,2354.8,4.24653]
[1727999254596,0.8133,2355.1,2354.7,0.8920189]
[1727999254597,4.31162066,2355.0,2354.7,0.8920189]
[1727999254800,5.05994,2354.8,2354.7,0.8920189]
[1727999255182,5.12514385,2354.8,2354.7,0.8920189]
[1727999255588,6.06232124,2354.8,2354.7,0.8920189]
[1727999256393,4.24701,2354.6,2354.2,4.24765]
[1727999256605,5.06017,2354.7,2354.3,4.24754]
[1727999256801,0.0640883,2354.5,2354.3,4.24754]
[1727999257002,5.06017,2354.7,2354.3,4.24754]
[1727999257207,0.06508756,2354.4,2354.3,4.24754]
[1727999257517,0.06400108,2354.4,2354.3,4.24754]
[1727999257942,5.06017,2354.7,2354.3,4.24754]
[1727999258241,0.06400108,2354.4,2354.3,4.24754]
[1727999258403,9.30717,2354.7,2354.3,4.24754]
[1727999258604,0.06400108,2354.4,2354.3,4.24754]
[1727999258799,9.30717,2354.7,2354.3,4.24754]
[1727999259008,0.06400108,2354.4,2354.3,4.24754]
[1727999259228,5.990887,2354.7,2354.3,4.24754]
[1727999259418,0.06400108,2354.4,2354.3,4.24754]
[1727999260042,5.06017,2354.7,2354.3,4.24754]
[1727999260544,0.06417551,2354.6,2354.3,4.24754]
[1727999260706,0.06417551,2354.6,2354.1,5.02079]
[1727999260902,4.24762,2354.3,2354.0,0.89226423]
[1727999261108,4.24762,2354.3,2353.8,1.59891483]
[1727999261109,5.06102,2354.2,2353.8,1.59891483]
[1727999261304,4.24799,2354.1,2353.9,0.44167562]
[1727999261510,0.06453975,2354.0,2353.7,5.02151]
[1727999262044,4.24806,2354.1,2353.7,0.7729]
[1727999262368,0.06447247,2353.9,2353.6,5.79762666]
[1727999262527,0.06447247,2353.9,2353.6,4.90536243]
[1727999262895,0.8133,2353.9,2353.6,4.90536243]
[1727999263163,0.8133,2353.9,2353.6,3.12213038]
[1727999264364,5.06158,2353.9,2353.6,3.12213038]
[1727999265367,5.06158,2353.9,2353.5,5.44748]
[1727999265662,5.06158,2353.9,2353.5,8.09932212]
[1727999265868,5.06158,2353.9,2353.5,7.65843429]
[1727999266668,5.06158,2353.9,2353.5,3.40945429]
[1727999266669,4.24846,2353.8,2353.5,3.40945429]
[1727999266968,4.24846,2353.8,2353.5,0.4256]
[1727999267967,5.06159,2353.9,2353.5,4.67457]
[1727999270457,5.06159,2353.9,2353.5,0.4256]
[1727999270791,4.24845,2353.8,2353.5,0.4256]
[1727999271959,5.06159,2353.9,2353.5,4.67451]
[1727999272352,4.248,2354.1,2353.6,4.2488]
[1727999272594,5.0212,2354.1,2353.7,8.30923863]
[1727999272758,5.0212,2354.1,2353.7,4.2485]
[1727999273076,0.06135765,2354.0,2353.7,4.2485]
[1727999273259,0.06135765,2354.0,2353.7,5.76061615]
[1727999278310,0.06135765,2354.0,2353.9,0.7618]
[1727999278525,0.06135765,2354.0,2353.9,9.07079863]
[1727999278813,4.24759,2354.3,2353.9,9.07079863]
[1727999279026,0.05933574,2354.0,2353.9,9.07079863]
[1727999279305,4.24773,2354.2,2353.9,6.30567311]
[1727999279512,0.05930477,2354.1,2353.9,2.24493448]
[1727999279674,0.05930477,2354.1,2353.9,0.7618]
[1727999280896,0.05930477,2354.1,2353.9,5.01]
[1727999281204,4.24756,2354.3,2353.9,9.25804]
[1727999281511,4.24756,2354.3,2353.9,6.38435786]
[1727999281804,0.05932445,2354.2,2353.9,10.63255786]
[1727999282017,0.05932445,2354.2,2354.1,9.07043863]
[1727999282223,4.24655,2354.9,2354.5,0.7618]
[1727999282421,4.24655,2354.9,2354.5,1.687465]
[1727999282422,4.24673,2354.8,2354.5,1.687465]
[1727999282708,4.30691163,2354.8,2354.5,1.687465]
[1727999283215,4.24691,2354.7,2354.3,5.06559]
[1727999283579,0.06004086,2354.6,2354.3,5.06559]
[1727999284710,0.06004086,2354.6,2354.4,4.24734]
[1727999284918,4.24648,2354.9,2354.5,5.06528]
[1727999285075,5.51260183,2355.2,2354.8,4.24656]
[1727999285278,9.31442,2355.2,2354.8,4.24656]
[1727999285507,5.06839,2355.2,2354.8,4.24656]
[1727999285807,5.06839,2355.2,2354.6,5.18471255]
[1727999286011,4.24624,2355.1,2354.7,4.2468]
[1727999288509,5.06839,2355.2,2354.7,4.2468]
[1727999288808,4.24616,2355.1,2354.7,4.2468]
[1727999289026,4.24616,2355.1,2354.7,5.67783512]
[1727999290411,5.06839,2355.2,2354.8,4.24662]
[1727999290988,0.06069153,2355.1,2354.8,4.24662]
[1727999292193,4.30680153,2355.1,2354.8,4.24662]
[1727999293432,4.30680153,2355.1,2354.7,5.67783512]
[1727999293925,8.55307153,2355.1,2354.7,5.67783512]
[1727999294124,4.30680153,2355.1,2354.7,5.67783512]
[1727999294891,4.30680153,2355.1,2354.8,5.06474]
[1727999295091,4.30680153,2355.1,2354.8,6.13899751]
[1727999295305,0.06069153,2355.1,2354.8,6.13899751]
[1727999295724,0.06069153,2355.1,2354.8,0.8181]
[1727999295924,4.30681153,2355.1,2354.8,0.8181]
[1727999297193,4.30681153,2355.1,2355.0,79.0]
[1727999297490,0.06069153,2355.1,2355.0,79.0]
[1727999297896,4.24582,2355.3,2355.0,79.0]
[1727999298096,4.30461449,2355.2,2355.0,79.0]
[1727999298333,0.05861449,2355.2,2355.0,79.0]
[1727999298638,0.05861449,2355.2,2355.0,83.30070532]
[1727999298839,4.24582,2355.3,2355.0,83.30070532]
[1727999299194,0.05684776,2355.2,2355.0,83.30070532]
[1727999299400,4.30279776,2355.2,2355.0,83.30070532]
[1727999299744,4.24582,2355.3,2355.0,79.0]
[1727999300247,0.05691523,2355.2,2355.0,79.0]
[1727999300461,4.30286523,2355.2,2355.0,79.0]
[1727999300629,4.24595,2355.2,2355.0,79.0]
[1727999301238,0.0568281,2355.1,2355.0,79.0]
[1727999301401,4.24595,2355.2,2355.0,79.0]
[1727999302438,4.24579,2355.3,2355.0,79.0]
[1727999302736,0.05691523,2355.2,2355.0,83.30070532]
[1727999302910,4.30285523,2355.2,2355.0,83.30070532]
[1727999304333,0.05691523,2355.2,2355.0,83.30070532]
[1727999304525,4.24577,2355.3,2355.0,83.30070532]
[1727999304723,0.05691523,2355.2,2355.0,83.30070532]
[1727999304925,4.24577,2355.3,2355.0,83.30070532]
[1727999305142,0.05691523,2355.2,2355.0,79.0]
[1727999305552,4.24577,2355.3,2355.0,79.0]
[1727999306011,0.05691523,2355.2,2355.0,79.0]
[1727999306218,4.24577,2355.3,2355.0,79.0]
[1727999306795,0.05691523,2355.2,2355.0,79.0]
[1727999306952,4.24574,2355.3,2355.1,4.30070532]
[1727999307126,4.24574,2355.3,2355.0,79.0]
[1727999307311,0.05691523,2355.2,2355.0,79.0]
[1727999307514,4.24574,2355.3,2355.0,79.0]
[1727999308040,0.05691523,2355.2,2355.0,79.0]
[1727999308356,4.24574,2355.3,2355.0,83.30070532]
[1727999308554,0.0568281,2355.1,2355.0,83.30070532]
[1727999308855,4.24574,2355.3,2355.0,83.30070532]
[1727999309063,0.0568281,2355.1,2355.0,83.30070532]
[1727999309218,4.24574,2355.3,2355.0,83.30070532]
[1727999309418,0.0568281,2355.1,2355.0,83.30070532]
[1727999309919,4.24574,2355.3,2355.0,83.30070532]
[1727999310119,0.05489755,2355.2,2355.1,9.07446482]
[1727999310375,0.44420688,2355.6,2355.1,4.78081743]
[1727999310589,9.29732,2355.8,2355.4,1.8731542]
[1727999310753,0.05427516,2355.5,2355.3,4.24559]
[1727999311089,4.24511,2355.7,2355.3,4.24559]
[1727999311240,4.24511,2355.7,2355.4,1.17390321]
[1727999312840,5.05289,2355.5,2355.1,2.35766323]
[1727999313040,0.8074,2355.5,2355.0,83.24617]
[1727999313283,4.24563,2355.4,2355.0,83.24617]
[1727999313582,4.24575,2355.3,2355.0,79.0]
[1727999313884,4.2461,2355.1,2355.0,79.0]
[1727999314042,5.0151,2355.1,2355.0,79.0]
[1727999314477,5.06979719,2355.1,2355.0,79.0]
[1727999323851,8.06979719,2355.1,2355.0,79.0]
[1727999325849,5.06979719,2355.1,2355.0,79.0]
[1727999326050,5.51396895,2355.1,2355.0,79.0]
[1727999328659,4.74496895,2355.1,2355.0,79.0]
[1727999330272,5.77368634,2355.1,2355.0,79.0]
[1727999330479,9.56458634,2355.1,2355.0,79.0]
[1727999333455,8.53586895,2355.1,2355.0,79.0]
[1727999333839,8.09169719,2355.1,2355.0,79.0]
[1727999334271,8.53585218,2355.1,2355.0,79.0]
[1727999344695,7.74495218,2355.1,2355.0,79.0]
[1727999345025,0.49885218,2355.1,2355.0,79.0]
[1727999345193,4.69025499,2355.1,2355.0,83.30070532]
[1727999345519,0.44415499,2355.1,2355.0,83.30070532]
[1727999345726,4.24582,2355.3,2355.0,84.12460532]
[1727999345889,4.24594,2355.2,2355.0,84.12460532]
[1727999346623,0.05437721,2355.1,2355.0,84.12460532]
[1727999346791,4.24594,2355.2,2355.0,84.12460532]
[1727999346984,0.05437721,2355.1,2355.0,84.12460532]
[1727999347179,4.24594,2355.2,2355.0,84.12460532]
[1727999347385,4.2461,2355.1,2355.0,79.8239]
[1727999347742,4.2461,2355.1,2355.0,0.8239]
[1727999347886,4.24594,2355.2,2355.0,0.8239]
[1727999348080,4.30019264,2355.1,2355.0,0.8239]
[1727999348933,0.05409264,2355.1,2355.0,0.8239]
[1727999350298,4.30019264,2355.1,2355.0,0.8239]
[1727999355791,0.05409264,2355.1,2355.0,0.8239]
[1727999355994,4.24598,2355.2,2355.0,1.330933]
[1727999356219,0.05350074,2355.1,2355.0,1.330933]
[1727999357095,4.29960074,2355.1,2355.0,1.330933]
[1727999357290,4.29960074,2355.1,2355.0,0.8239]
[1727999357627,0.05350074,2355.1,2355.0,0.8239]
[1727999357994,4.24598,2355.2,2355.0,0.8239]
[1727999358291,4.24635,2355.0,2354.8,0.8239]
[1727999358688,0.05418762,2354.9,2354.8,0.8239]
[1727999359241,0.05418762,2354.9,2354.8,1.330981]
[1727999359446,4.2461,2355.1,2354.8,5.577621]
[1727999359651,0.05418762,2354.9,2354.8,5.07054]
[1727999359821,4.2461,2355.1,2354.8,5.07054]
[1727999360156,0.05351353,2354.9,2354.8,6.0913764]
[1727999360321,4.2461,2355.1,2354.8,6.0913764]
[1727999360517,0.05418762,2354.9,2354.8,0.8239]
[1727999360715,4.24592,2355.2,2354.8,5.07043]
[1727999360912,0.05351353,2354.9,2354.8,5.07043]
[1727999361117,4.24592,2355.2,2354.8,6.002155]
[1727999361608,4.24637,2355.0,2354.6,0.7986]
[1727999361912,4.247,2354.6,2354.5,0.890874]
[1727999362421,5.08424552,2354.6,2354.5,0.890874]
[1727999362632,6.01735207,2354.6,2354.5,0.890874]
[1727999364952,9.01735207,2354.6,2354.5,0.890874]
[1727999374482,7.30114552,2354.6,2354.5,0.890874]
[1727999377160,4.24754,2354.3,2354.2,0.7527]
[1727999377527,4.30088147,2354.3,2354.2,0.7527]
[1727999377723,0.05334147,2354.3,2354.2,0.7527]
[1727999378730,4.30088147,2354.3,2354.2,0.7527]
[1727999378933,0.05334147,2354.3,2354.2,0.7527]
[1727999379465,4.30088147,2354.3,2354.2,0.7527]
[1727999389320,0.05334147,2354.3,2354.2,0.7527]
[1727999390422,4.30088147,2354.3,2354.2,0.7527]
[1727999397842,0.05334147,2354.3,2354.2,0.7527]